Workbook

Sheet DATEN
B1: Versuchsanstalt Musterhausen | F1: Gelbe Felder sind zu überschreiben bzw. auszufüllen | L1: Versuchs-Nr.: | O1: xxx
B2: Musterstraße | F2: Felder mit roter Schrift berrechnen sich aus der dahinter liegenden Formel | L2: Versuchs-Datum: | O2: xxx
B3: Musterstadt | L3: Kulturart: | O3: xxx
A4: VERSUCHSFLÄCHE | J4: VERSUCHSANORDNUNG (Kultur)
B5: Betrieb: | C5: xxx | F5: Flurstück: | I5: Kollektorart: | L5: Kollektorgröße:
B6: Straße: | C6: xxx | F6: Lage: | G6: xxx | I6: Anzahl je Wdh.: | L6: Wiederholungen:
B7: Ort: | C7: xxx | F7: Hangneigung: | K7: Hauptwindrichtung aus xxx°
A8: KULTUR | J8: VERSUCHSANORDNUNG (Bodensediment/Abtrift)
B9: Sorte: | C9: xxx | F9: Unterlage: | I9: Standardanordnung Abdrift: | L9: Feldbau:
B10: Alter: | C10: xxx | F10: Standraum: | L10: Weinbau:
B11: Anbauform: | C11: xxx | F11: Bestandesdichte: | L11: Obstbau:
B12: Entwicklungsstadium: | F12: Wüchsigkeit: | L12: Hopfenbau:
B13: Bestandeshöhe: | C13: xxx | D13: cm | F13: Begrenzung oben: | G13: xxx | H13: cm | I13: Änderungen:
F14: Begrenzung unten: | G14: xxx | H14: cm
A15: BEHANDLUNGSFLÜSSIGKEIT | I15: Abtrift: Bodensediment
B16: Flüssigkeitsmenge: | C16: 1000 | D16: l | F16: Flüssigkeitsaufwand: | G16: 300.0 | H16: l/ha | I16: Kollektorart: | J16: z..B. Petrischalen | L16: Kollektorgröße: | N16: 145
B17: Nachweisstoff: | C17: xxx | F17: Konzentration | G17: =L41/10 -> 0.280 | H17: % | I17: Anzahl je Wdh.: | J17: 10 | L17: Wiederholungen:
B18: Nachweisstoffmenge: | C18: 100 | D18: g | F18: Nachweisstoffaufwand: | G18: =G16*G17*10 -> 838.56 | H18: g/ha
B19: Hilfsstoffe: | F19: Konzentration: | G19: =C20/C16/10 -> 0.00 | H19: % | I19: Meßentfernungen: | K19: xxx
B20: Hilfsstoffmenge: | D20: g | F20: Hilfsstoffaufwand: | G20: =G16*G19*10 -> 0.00 | H20: g/ha
A21: PFLANZENSCHUTZGERÄT | I21: Abtrift: Schwebeteilchen
B22: Hersteller: | C22: Mustermann | F22: Typ: | G22: xyz | I22: Kollektorart: | J22: xxx | L22: Kollektorgröße: | N22: xxx
I23: Anzahl je Wdh.: | J23: xxx | L23: Wiederholungen: | N23: xxx
B24: Arbeitsbreite: | C24: xxx | D24: m | F24: Fahrgeschwindigkeit: | G24: xxx | H24: km/h | I24: Höhe oben: | J24: xxx | K24: m | L24: Vertikaler Abstand: | N24: xxx | O24: m
B25: Behandelte Reihen: | C25: xxx | F25: Gesamtdüsenausstoß: | G25: =C42+G42 -> 0.00 | H25: l/min | I25: Höhe unten: | J25: xxx | K25: m
B26: Düsentyp: | C26: xxx | F26: Abstand 1. Düse vom Boden: | G26: xxx | H26: cm
B27: Abspritzwinkel: | C27: xxx | E27: ° | F27: Gestängehöhe: | H27: cm | I27: Bemerkungen:
E28: ° | F28: Spritzdruck: | G28: xxx | H28: bar
B29: Düsenanordnung (von oben nach unten, von hinten betrachtet) und Düsenausstoß: | I29: Sediment in der Anlage:
C30: links | G30: rechts | I30: Kollektorart: | L30: Kollektorgröße:
B31: Größe | C31: Ausstoß (l/min) | D31: Winkel | F31: Größe | G31: Ausstoß (l/min) | H31: Winkel | I31: Anzahl je Wdh.: | L31: Wiederholungen:
A32: 10 | B32: Musterdüse | C32: xxx | E32: 10 | F32: Musterdüse | G32: xxx | L32: Abstand in Fahrtricht.: | O32: m
A33: 9 | B33: Musterdüse | C33: xxx | E33: 9 | F33: Musterdüse | G33: xxx
A34: 8 | B34: Musterdüse | C34: xxx | E34: 8 | F34: Musterdüse | G34: xxx | I34: Angaben zum Fluorometer (Messmethodik)
A35: 7 | B35: Musterdüse | C35: xxx | E35: 7 | F35: Musterdüse | G35: xxx | I35: Fluorometer:
A36: 6 | B36: Musterdüse | C36: xxx | E36: 6 | F36: Musterdüse | G36: xxx
A37: 5 | B37: Musterdüse | C37: xxx | E37: 5 | F37: Musterdüse | G37: xxx | I37: Stammlösung im Labor (g/l) | L37: 1.000
A38: 4 | B38: Musterdüse | C38: xxx | E38: 4 | F38: Musterdüse | G38: xxx | I38: Verdünnung der Stammlösung | L38: 1000 | R38: Hilfstabelle
A39: 3 | B39: Musterdüse | C39: xxx | E39: 3 | F39: Musterdüse | G39: xxx | I39: Kalibrierlösung der Stammlösgung (g/l) | L39: =L37/L38 -> 0.00100000 | N39: FI Wert: | O39: 91.80 | R39: =L39*1000 -> 1 | S39: mg/l
A40: 2 | B40: Musterdüse | C40: xxx | E40: 2 | F40: Musterdüse | G40: xxx | I40: Kalibrierlösung der Stammlösgung (mg/l) | L40: =L39*1000 -> 1.000 | R40: =R39*1000 -> 1000 | S40: µg/l
A41: 1 | B41: Musterdüse | C41: xxx | E41: 1 | F41: Musterdüse | G41: xxx | I41: reale Stammlösung der Tankprobe (g/l) | L41: =L43*L42 -> 2.79520697 | R41: =R40*1000 -> 1000000 | S41: ng/l
B42: Summe: | C42: =SUM(C32:C41) -> 0.00 | D42: l/min | F42: Summe: | G42: =SUM(G32:G41) -> 0.00 | H42: l/min | I42: Verdünnung der Tankprobe: | L42: 1000
B43: Stellung der Luftleitbleche: | I43: Kalibrierlösung der Tankprobe (g/l) | L43: =L39*O43/O39 -> 0.00279521 | N43: FI Wert: | O43: 256.60
B44: oben links: | D44: ° | F44: oben rechts: | H44: °
B45: unten links: | D45: ° | F45: unten rechts: | H45: ° | I45: Bemerkungen:
B46: Winkel zur Horizontalen gemessen, nach oben mit (+), nach unten mit (-) gekennzeichnet
B47: Gebläsetyp: | C47: xxx | F47: Drehrichtung: | G47: xxx
B48: Getriebestufe: | C48: xxx | F48: Drehzahl: | G48: xxx | H48: 1/min | J48: WETTERDATEN
B49: Angaben zur | C49: xxx | I49: Versuch | J49: Uhrzeit | K49: Temp. | L49: LFrel.
B50: Versuchsbeschreibung: | C50: xxx | K50: °C | L50: %
I51: 1 | J51: xxx | K51: xxx | L51: xxx
I52: 2 | J52: xxx | K52: xxx | L52: xxx
I53: 3 | J53: xxx | K53: xxx | L53: xxx

Sheet Wdh x
B1: Abdrift - Bodensediment | V1: Versuchs-Nr.: | X1: =+DATEN!O1 -> xxx
AF2: Kalibriergerade (bitte Einheit beachten,
B3: Nachweisstoffaufwand: | H3: =+DATEN!G18 -> 838.6 | I3: g/ha | J3: bzw. | N3: =H3/100 -> 8.386 | O3: ug/cm² | Q3: Behandelte Reihen: | V3: =+DATEN!C25 -> xxx | X3: Arbeitsbreite: | AB3: =+DATEN!C24 -> xxx | AC3: m | AF3: Berechnung erfolgt hier auf Basis von µg/l)
E4: 3 m | L4: 5 m | S4: 10 m | Z4: 15 m
AF5: Umrechnunge je nach Gerät anpassen
AF6: µg/l | AG6: mg/l | AI6: Der Bereich und die Abstände der Kalibrierreihe sind so zu wählen, dass die Messwerte optimal abgebildet werden.
B7: Korrekturfaktor: | H7: 1.00 | I7: Korrekturfaktor: | O7: 1.00 | P7: Korrekturfaktor: | V7: 1.00 | W7: Korrekturfaktor: | AC7: 1.00 | AF7: 1000 | AG7: =AF7/(1000) -> 1
A8: Meß- | B8: Meß- | C8: Abw.fl. | D8: Fläche | E8: Konzentration | F8: Valide Messwerte | G8: Belag | H8: Belag | I8: Meß- | J8: Abw.fl. | K8: Fläche | L8: Konzentration | M8: Valide Messwerte | N8: Belag | O8: Belag | P8: Meß- | Q8: Abw.fl. | R8: Fläche | S8: Konzentration | T8: Valide Messwerte | U8: Belag | V8: Belag | W8: Meß- | X8: Abw.fl. | Y8: Fläche | Z8: Konzentration | AA8: Valide Messwerte | AB8: Belag | AC8: Belag | AI8: Werte der Kalibriergraden eingeben!
A9: wert | B9: wert | C9: ml | D9: cm² | E9: µg/l | F9: µg/l | G9: ug/cm² | H9: % | I9: wert | J9: ml | K9: cm² | L9: µg/l | M9: µg/l | N9: ug/cm² | O9: % | P9: wert | Q9: ml | R9: cm² | S9: µg/l | T9: µg/l | U9: ug/cm² | V9: % | W9: wert | X9: ml | Y9: cm² | Z9: µg/l | AA9: µg/l | AB9: ug/cm² | AC9: % | AF9: Datum:
A10: Nr. | AF10: Laborant: | AI10: Konzentration
A11: 1 | B11: 100 | C11: 40 | D11: 145 | E11: =(B11-$AJ$41-$AA$41)/$AJ$42 -> 8256.2049 | F11: =IF(E11<$AJ$52,"",IF(E11<$AJ$54,(($AJ$54-$AJ$52)/2+$AJ$52),E11)) -> 8256.2049 | G11: =IF(F11="",0,((F11)*(C11/D11))*$H$7/1000) -> 2.2776 | H11: =(G11)/$N$3*100 -> 27.160 | I11: xx | J11: xx | K11: 145 | L11: =(I11-$AJ$41-$AA$41)/$AJ$42 ->  | M11: =IF(L11<$AJ$52,"",IF(L11<$AJ$54,(($AJ$54-$AJ$52)/2+$AJ$52),L11)) ->  | N11: =IF(M11="",0,((M11)*(J11/K11))*$O$7/1000) ->  | O11: =(N11)/$N$3*100 ->  | P11: xx | Q11: xx | R11: 145 | S11: =(P11-$AJ$41-$AA$41)/$AJ$42 ->  | T11: =IF(S11<$AJ$52,"",IF(S11<$AJ$54,(($AJ$54-$AJ$52)/2+$AJ$52),S11)) ->  | U11: =IF(T11="",0,((T11)*(Q11/R11))*$V$7/1000) ->  | V11: =(U11)/$N$3*100 ->  | W11: xx | X11: xx | Y11: 145 | Z11: =(W11-$AJ$41-$AA$41)/$AJ$42 ->  | AA11: =IF(Z11<$AJ$52,"",IF(Z11<$AJ$54,(($AJ$54-$AJ$52)/2+$AJ$52),Z11)) ->  | AB11: =IF(AA11="",0,((AA11)*(X11/Y11))*$AC$7/1000) ->  | AC11: =(AB11)/$N$3*100 ->  | AF11: Projekt: | AI11: µg/l | AJ11: FL-Wert
A12: 2 | B12: 50 | C12: 40 | D12: 145 | E12: 4068.2675 | F12: 4068.2675 | G12: =IF(F12="",0,((F12)*(C12/D12))*$H$7/1000) -> 1.1223 | H12: =(G12)/$N$3*100 -> 13.383 | I12: xx | J12: xx | K12: 145 | N12: =IF(M12="",0,((M12)*(J12/K12))*$O$7/1000) ->  | P12: xx | Q12: xx | R12: 145 | U12: =IF(T12="",0,((T12)*(Q12/R12))*$V$7/1000) ->  | W12: xx | X12: xx | Y12: 145 | AB12: =IF(AA12="",0,((AA12)*(X12/Y12))*$AC$7/1000) ->  | AF12: Versuch: | AI12: x (µg/l) | AJ12: y | AK12: y_dach | AL12: Residuum | AM12: (x_i-x_quer)^2 | AN12: (y_i-y_quer)^2 | AO12: quadr. Res | AP12: (y_i-y_dach_i)^2/(n-2) | AQ12: s^2_yx*(1+1/n+((x_i-x_quer)^2/[x²]) | AR12: unteres Prog | AS12: oberes Prog
A13: 3 | B13: 20 | C13: 10 | D13: 145 | E13: 1555.5050 | F13: 1555.5050 | G13: 0.1073 | H13: 1.279 | I13: xx | J13: xx | K13: 145 | P13: xx | Q13: xx | R13: 145 | W13: xx | X13: xx | Y13: 145 | AF13: Nachweisstoff: | AI13: 9600 | AJ13: 117.30 | AK13: =$AJ$41+$AJ$42*AI13 -> 116.04 | AL13: =AJ13-AK13 -> 1.26 | AM13: =(AI13-$AJ$28)^2 -> 28090000.00 | AN13: =(AJ13-$AJ$29)^2 -> 4164.55 | AO13: =AL13^2 -> 1.58 | AP13: =((AJ13-AK13)^2)/($AJ$35-2) -> 0.39 | AQ13: =$AJ$32*(1+1/$AJ$35+(AM13/$AJ$31)) -> 1.67 | AR13: =AK13-SQRT(AQ13)*$AJ$37 -> 112.45 | AS13: =AK13+SQRT(AQ13)*$AJ$37 -> 119.63
A14: 4 | B14: 10 | C14: 10 | D14: 145 | E14: 717.9175 | F14: 556.6695 | G14: 0.0384 | H14: 0.458 | I14: xx | J14: xx | K14: 145 | P14: xx | Q14: xx | R14: 145 | W14: xx | X14: xx | Y14: 145 | AF14: Analysegerät: | AI14: 7200 | AJ14: 85.90 | AK14: 87.39 | AL14: =AJ14-AK14 -> -1.49 | AM14: 8410000.00 | AN14: 1097.82 | AO14: =AL14^2 -> 2.22 | AP14: 0.55 | AQ14: 1.35 | AR14: 84.16 | AS14: 90.62
A15: 5 | B15: 5 | C15: 20 | D15: 145 | E15: 299.1237 | F15: 556.6695 | G15: 0.0768 | H15: 0.916 | I15: xx | J15: xx | K15: 145 | P15: xx | Q15: xx | R15: 145 | W15: xx | X15: xx | Y15: 145 | AF15: Messeinheit | AI15: 4800 | AJ15: 58.30 | AK15: 58.74 | AL15: =AJ15-AK15 -> -0.44 | AM15: 250000.00 | AN15: 30.62 | AO15: 0.19 | AP15: 0.05 | AQ15: 1.22 | AR15: 55.67 | AS15: 61.80
A16: 6 | B16: 2 | C16: xx | D16: 145 | E16: 47.8475 | G16: 0.0000 | H16: 0.000 | I16: xx | J16: xx | K16: 145 | P16: xx | Q16: xx | R16: 145 | W16: xx | X16: xx | Y16: 145 | AF16: Gemessen bei HV | AI16: 2400 | AJ16: 30.20 | AK16: 30.08 | AL16: =AJ16-AK16 -> 0.12 | AM16: 3610000.00 | AN16: 509.25 | AO16: 0.01 | AP16: 0.00 | AQ16: 1.27 | AR16: 26.95 | AS16: 33.21
A17: 7 | B17: xx | C17: xx | D17: 145 | I17: xx | J17: xx | K17: 145 | P17: xx | Q17: xx | R17: 145 | W17: xx | X17: xx | Y17: 145 | AF17: /Frequenz (high/low) | AI17: 1200 | AJ17: 16.00 | AK17: 15.76 | AL17: =AJ17-AK17 -> 0.24 | AM17: 9610000.00 | AN17: 1351.79 | AO17: 0.06 | AP17: 0.01 | AQ17: 1.37 | AR17: 12.51 | AS17: 19.00
A18: 8 | B18: xx | C18: xx | D18: 145 | I18: xx | J18: xx | K18: 145 | P18: xx | Q18: xx | R18: 145 | W18: xx | X18: xx | Y18: 145 | AI18: 600 | AJ18: 8.90 | AK18: 8.59 | AL18: 0.31 | AM18: 13690000.00 | AN18: 1924.28 | AO18: 0.09 | AP18: 0.02 | AQ18: 1.44 | AR18: 5.27 | AS18: 11.92
A19: 9 | B19: xx | C19: xx | D19: 145 | I19: xx | J19: xx | K19: 145 | P19: xx | Q19: xx | R19: 145 | W19: xx | X19: xx | Y19: 145
A20: 10 | B20: xx | C20: xx | D20: 145 | I20: xx | J20: xx | K20: 145 | P20: xx | Q20: xx | R20: 145 | W20: xx | X20: xx | Y20: 145
B22: Mittelwert | I22: Mittelwert | P22: Mittelwert | W22: Mittelwert
E23: 20 m | L23: 50 m | S23: 100 m | Z23: Leerschalen
B26: Korrekturfaktor: | H26: 1.00 | I26: Korrekturfaktor: | O26: 1.00 | P26: Korrekturfaktor: | V26: 1.00 | W26: Korrekturfaktor: | AC26: 1.00
A27: Meß- | B27: Meß- | C27: Abw.fl. | D27: Fläche | E27: Konzentration | F27: Valide Messwerte | G27: Belag | H27: Belag | I27: Meß- | J27: Abw.fl. | K27: Fläche | L27: Konzentration | M27: Valide Messwerte | N27: Belag | O27: Belag | P27: Meß- | Q27: Abw.fl. | R27: Fläche | S27: Konzentration | T27: Valide Messwerte | U27: Belag | V27: Belag | W27: Meß- | X27: Abw.fl. | Y27: Fläche | Z27: Konzentration | AA27: Valide Messwerte | AB27: Belag | AC27: Belag
A28: wert | B28: wert | C28: ml | D28: cm² | E28: µg/l | F28: µg/l | G28: ug/cm² | H28: % | I28: wert | J28: ml | K28: cm² | L28: µg/l | M28: µg/l | N28: ug/cm² | O28: % | P28: wert | Q28: ml | R28: cm² | S28: µg/l | T28: µg/l | U28: ug/cm² | V28: % | W28: wert | X28: ml | Y28: cm² | Z28: µg/l | AA28: µg/l | AB28: ug/cm² | AC28: % | AI28: x _quer | AJ28: =AVERAGE(AI13:AI25) -> 4300.00
A29: Nr. | AI29: y_quer | AJ29: =AVERAGE(AJ13:AJ25) -> 52.77
A30: 1 | B30: xx | C30: xx | D30: 145 | E30: =(B30-$AJ$41-$AA$41)/$AJ$42 ->  | F30: =IF(E30<$AJ$52,"",IF(E30<$AJ$54,(($AJ$54-$AJ$52)/2+$AJ$52),E30)) ->  | G30: =IF(F30="",0,((F30)*(C30/D30))*$H$26/1000) ->  | H30: =(G30)/$N$3*100 ->  | I30: xx | J30: xx | K30: 145 | L30: =(I30-$AJ$41-$AA$41)/$AJ$42 ->  | M30: =IF(L30<$AJ$52,"",IF(L30<$AJ$54,(($AJ$54-$AJ$52)/2+$AJ$52),L30)) ->  | N30: =IF(M30="",0,((M30)*(J30/K30))*$O$26/1000) ->  | O30: =N30/$N$3*100 ->  | P30: xx | Q30: xx | R30: 145 | S30: =(P30-$AJ$41-$AA$41)/$AJ$42 ->  | T30: =IF(S30<$AJ$52,"",IF(S30<$AJ$54,(($AJ$54-$AJ$52)/2+$AJ$52),S30)) ->  | U30: =IF(T30="",0,((T30)*(Q30/R30))*$V$26/1000) ->  | V30: =U30/$N$3*100 ->  | W30: 0 | X30: 40 | Y30: 145 | Z30: =(W30-$AJ$41)/$AJ$42 -> -119.6700 | AA30: =IFERROR(Z30,"") -> -119.6700 | AI30: Reststreuung | AJ30: =SQRT(SUM(AO13:AO25)/($AJ$35-2)) -> 1.02
A31: 2 | B31: xx | C31: xx | D31: 145 | G31: =IF(F31="",0,((F31)*(C31/D31))*$H$26/1000) ->  | I31: xx | J31: xx | K31: 145 | N31: =IF(M31="",0,((M31)*(J31/K31))*$O$26/1000) ->  | P31: xx | Q31: xx | R31: 145 | U31: =IF(T31="",0,((T31)*(Q31/R31))*$V$26/1000) ->  | W31: 0 | X31: 40 | Y31: 145 | Z31: -119.6700 | AA31: =IFERROR(Z31,"") -> -119.6700 | AI31: [x²] | AJ31: =SUM(AM12:AM25) -> 63660000.00 | AK31: summe(x_i-x_quer)^2
A32: 3 | B32: xx | C32: xx | D32: 145 | I32: xx | J32: xx | K32: 145 | P32: xx | Q32: xx | R32: 145 | W32: 0 | X32: 40 | Y32: 145 | Z32: -119.6700 | AA32: -119.6700 | AI32: s²_yx | AJ32: =SUM(AP12:AP25) -> 1.04 | AK32: summe((y_i-y_dach_i)^2/(n-2))
A33: 4 | B33: xx | C33: xx | D33: 145 | I33: xx | J33: xx | K33: 145 | P33: xx | Q33: xx | R33: 145 | W33: 0 | X33: 40 | Y33: 145 | Z33: -119.6700 | AA33: -119.6700 | AV33: Graphik
A34: 5 | B34: xx | C34: xx | D34: 145 | I34: xx | J34: xx | K34: 145 | P34: xx | Q34: xx | R34: 145 | W34: xx | X34: xx | Y34: 145 | AB34: =IF(AA34="","",((AA34)*(X34/Y34))*$AC$26) ->  | AC34: =IF(AB34="","",AB34/$N$3*100) ->  | AV34: 0 | AW34: =AJ44 -> 4.85
A35: 6 | B35: xx | C35: xx | D35: 145 | I35: xx | J35: xx | K35: 145 | P35: xx | Q35: xx | R35: 145 | W35: xx | X35: xx | Y35: 145 | AI35: Anzahl | AJ35: =COUNT(AJ13:AJ25) -> 6 | AV35: =MAX(AI13:AI25) -> 9600 | AW35: =AJ44 -> 4.85
A36: 7 | B36: xx | C36: xx | D36: 145 | I36: xx | J36: xx | K36: 145 | P36: xx | Q36: xx | R36: 145 | W36: xx | X36: xx | Y36: 145 | AI36: Sig-Niveau | AJ36: 0.05
A37: 8 | B37: xx | C37: xx | D37: 145 | I37: xx | J37: xx | K37: 145 | P37: xx | Q37: xx | R37: 145 | W37: xx | X37: xx | Y37: 145 | AI37: t-Wert | AJ37: =TINV(AJ36,AJ35-2) -> 2.776 | AV37: =AJ52 -> 286.1664 | AW37: 0.00
A38: 9 | B38: xx | C38: xx | D38: 145 | I38: xx | J38: xx | K38: 145 | P38: xx | Q38: xx | R38: 145 | W38: xx | X38: xx | Y38: 145 | AV38: =AJ52 -> 286.1664 | AW38: =MAX(AJ12:AK25) -> 117.30
A39: 10 | B39: xx | C39: xx | D39: 145 | I39: xx | J39: xx | K39: 145 | P39: xx | Q39: xx | R39: 145 | W39: xx | X39: xx | Y39: 145
AI40: Präzisionsberechnung | AV40: =AJ53 -> 572.3328 | AW40: 0.00
B41: Mittelwert | I41: Mittelwert | P41: Mittelwert | W41: Mittelwert | AA41: =IF((AVERAGE(AA30:AA39)<0),0,AVERAGE(AA30:AA39)) -> 0.0000 | AB41: =AVERAGE(AB30:AB39) ->  | AC41: =AVERAGE(AC30:AC39) ->  | AI41: a-Achsenabschnitt | AJ41: =INTERCEPT(AJ13:AJ25,AI13:AI25) -> 1.4 | AV41: =AJ53 -> 572.3328 | AW41: =MAX(AJ12:AK25) -> 117.30
AI42: b-Steigung | AJ42: =SLOPE(AJ13:AJ25,AI13:AI25) -> 0.0
AI43: wurzel | AJ43: =SQRT((1/1)+(1/AJ35)+(AJ28^2/(SUM(AM13:AM25)))) -> 1.207 | AV43: =AJ54 -> 827.1727 | AW43: 0.00
A44: Hilfstabelle für Grafik und Auswertung Verlustminderung | AI44: y_p | AJ44: =AJ41+AJ30*AJ37*AJ43 -> 4.85 | AV44: =AJ54 -> 827.1727 | AW44: =MAX(AJ12:AK25) -> 117.30
AI45: s_x0 | AJ45: =AJ30/AJ42 -> 85.3852
B46: =E4 -> 3 m | C46: =L4 -> 5 m | D46: =S4 -> 10 m | E46: =Z4 -> 15 m | F46: =E23 -> 20 m | G46: 50 m | H46: =S23 -> 100 m | I46: Nullwerte | AI46: VB_x | AJ46: =AJ45*AJ37*SQRT((1/1)+(1/AJ35)+((AJ44-AJ29)^2/(AJ42^2*SUM(AM13:AM25)))) -> 282.4727
A47: 1 | B47: =IF(H11<0,0,H11) -> 27.160 | C47: =IF(O11<0,0,O11) ->  | D47: =IF(V11<0,0,V11) ->  | E47: =IF(AC11<0,0,AC11) ->  | F47: =IF(H30<0,0,H30) ->  | G47: =IF(O30<0,0,O30) ->  | H47: =IF(V30<0,0,V30) ->  | I47: =IF(AC30<0,0,AC30) -> 0.000 | AI47: x_p | AJ47: =2*AJ46 -> 564.9454
A48: 2 | B48: =IF(H12<0,0,H12) -> 13.383 | C48: =IF(O12<0,0,O12) ->  | D48: =IF(V12<0,0,V12) ->  | E48: =IF(AC12<0,0,AC12) ->  | F48: =IF(H31<0,0,H31) ->  | G48: =IF(O31<0,0,O31) ->  | H48: =IF(V31<0,0,V31) ->  | I48: =IF(AC31<0,0,AC31) -> 0.000 | AI48: VB_x1 | AJ48: =AJ45*AJ37*SQRT((1/1)+(1/AJ35)+((MIN(AI13:AI25)-AJ28)^2/SUM(AM13:AM25))) -> 278.6640 | AK48: Vertrauensbereich für den niedrigsten Messwert
A49: 3 | B49: 1.279 | I49: 0.000 | AI49: VB_rel | AJ49: =AJ48/MIN(AI13:AI25)*100 -> 46.4440 | AK49: rel. Vertrauensbereich (Präzision)
A50: 4 | B50: 0.458 | I50: 0.000
A51: 5 | B51: 0.916 | AJ51: µg/l
A52: 6 | B52: 0.000 | AH52: NWG | AI52: x_N | AJ52: =(AJ44-AJ41)/AJ42 -> 286.1664
A53: 7 | AH53: EG | AI53: x_E | AJ53: =2*AJ52 -> 572.3328
A54: 8 | AH54: BSTG | AI54: x_B | AJ54: =3*AJ30/AJ42*AJ37*SQRT((1/1)+(1/AJ35)+((3*AJ52-AJ28)^2/SUM(AM13:AM25))) -> 827.1727
A55: 9
A56: 10
C59: unter der NWG
C60: unter der BSTG

Sheet Wind x
A1: Windrichtung und Windgeschwindigkeit
H2: Skizze zum Versuchsaufbau
A3: Datum | B3: Uhrzeit | C3: Windrichtung | D3: Windgeschwindigkeit | E3: Temperatur | F3: relative Luftfeuchte | H3: Beispielhafte Darstellung für Hauptwindrichtung aus 270°
C4: [Grad] | D4: [m/s] | E4: [°C] | F4: [%]
A6: sekündliche Aufzeichnung während der Fahrten oder enstprechende Dateien (csv, txt, xls o.ä.) mitliefern
